Workbook

Sheet Datos
B4: App pago de detracciones : Por internet y/o BN - NPD
C5: Datos de la empresa
E8: Ingrese número de Ruc
F10: 20397609082
D16: N° Ruc | E16: 20397609082
D19: Razón Social | E19: REPALSA S.A.
D22: Nro de Cuenta | E22: 00741151820
D25: Ruta Txt | E25: C:\Users\CONTADOR\Desktop
C38: https://www.noticierocontable.com/ | G38: <--Contactos --> | N38: http://kunan.es/

Sheet Prov_Clie
C2: Proveedor | D2: =CONCATENATE(Datos!E16," - ",Datos!E19) -> 20397609082 - REPALSA S.A.
C4: N° Lote | D4: 220006 | E4: Importe : | F4: =SUM($H$13:$H$993) -> 28454
C6: POR INTERNET - Proveedor con múltiples adquirientes
C8: DATOS DEL CLIENTE | F8: INFORMACION RESPECTO AL DEPOSITO | K8: DATOS DEL COMPROBANTE
C11: TIPO | D11: N° RUC | E11: NOMBRES / RAZON SOCIAL | F11: N° PROFORM | G11: Bs / Ss | H11: IMPORTE | I11: TIPO OPERACION | J11: PERIODO | K11: TIPO | L11: SERIE | M11: NUMERO
C13: 6 | D13: 20559605850 | E13: RABSA INGENIERIA Y CONSTRUCCION S.A.C. | F13: 0 | G13: 37 | H13: 507 | I13: 1 | J13: 202204 | K13: 01 | L13: F001 | M13: 0044296
C14: 6 | D14: 20440492283 | E14: CONSTRUCTORA MORENO LINCH S.A.C. | F14: 0 | G14: 37 | H14: 94 | I14: 1 | J14: 202204 | K14: 01 | L14: F001 | M14: 0044302
C15: 6 | D15: 20482115005 | E15: CORPORACION RC S.A.C. | F15: 0 | G15: 37 | H15: 346 | I15: 1 | J15: 202204 | K15: 01 | L15: F001 | M15: 0044304
C16: 6 | D16: 20482115005 | E16: CORPORACION RC S.A.C. | F16: 0 | G16: 37 | H16: 346 | I16: 1 | J16: 202204 | K16: 01 | L16: F001 | M16: 0044305
C17: 6 | D17: 20482115005 | E17: CORPORACION RC S.A.C. | F17: 0 | G17: 37 | H17: 346 | I17: 1 | J17: 202204 | K17: 01 | L17: F001 | M17: 0044306
C18: 6 | D18: 20482115005 | E18: CORPORACION RC S.A.C. | F18: 0 | G18: 37 | H18: 346 | I18: 1 | J18: 202204 | K18: 01 | L18: F001 | M18: 0044307
C19: 6 | D19: 20482115005 | E19: CORPORACION RC S.A.C. | F19: 0 | G19: 37 | H19: 346 | I19: 1 | J19: 202204 | K19: 01 | L19: F001 | M19: 0044308
C20: 6 | D20: 20440492283 | E20: CONSTRUCTORA MORENO LINCH S.A.C. | F20: 0 | G20: 37 | H20: 335 | I20: 1 | J20: 202204 | K20: 01 | L20: F001 | M20: 0044309
C21: 6 | D21: 20440492283 | E21: CONSTRUCTORA MORENO LINCH S.A.C. | F21: 0 | G21: 37 | H21: 222 | I21: 1 | J21: 202204 | K21: 01 | L21: F001 | M21: 0044310
C22: 6 | D22: 20480962983 | E22: COMPAÑIA DE EQUIPAMIENTO ELECTRICO INTEGRAL E INDUSTRIAL S.R.L. | F22: 0 | G22: 37 | H22: 381 | I22: 1 | J22: 202204 | K22: 01 | L22: F001 | M22: 0044311
C23: 6 | D23: 20480962983 | E23: COMPAÑIA DE EQUIPAMIENTO ELECTRICO INTEGRAL E INDUSTRIAL S.R.L. | F23: 0 | G23: 37 | H23: 163 | I23: 1 | J23: 202204 | K23: 01 | L23: F001 | M23: 0044312
C24: 6 | D24: 20481886300 | E24: CONSTRUCTORA CIEZA TEJADA EMPRESA INDIVIDUAL DE RESPONSABILIDAD LIMITADA | F24: 0 | G24: 37 | H24: 223 | I24: 1 | J24: 202204 | K24: 01 | L24: F001 | M24: 0044327
C25: 6 | D25: 20540046566 | E25: VIAGO CONSTRUCTORES E.I.R.L. | F25: 0 | G25: 37 | H25: 104 | I25: 1 | J25: 202204 | K25: 01 | L25: F001 | M25: 0044339
C26: 6 | D26: 20482182292 | E26: CONSTRUCTORA E INMOBILIARIA JOSHUA SRL | F26: 0 | G26: 37 | H26: 127 | I26: 1 | J26: 202204 | K26: 01 | L26: F001 | M26: 0044341
C27: 6 | D27: 20544771478 | E27: LCL CONTRATISTAS S.A.C. | F27: 0 | G27: 37 | H27: 102 | I27: 1 | J27: 202204 | K27: 01 | L27: F001 | M27: 0044343
C28: 6 | D28: 20480962983 | E28: COMPAÑIA DE EQUIPAMIENTO ELECTRICO INTEGRAL E INDUSTRIAL S.R.L. | F28: 0 | G28: 37 | H28: 638 | I28: 1 | J28: 202204 | K28: 01 | L28: F001 | M28: 0044349
C29: 6 | D29: 20480962983 | E29: COMPAÑIA DE EQUIPAMIENTO ELECTRICO INTEGRAL E INDUSTRIAL S.R.L. | F29: 0 | G29: 37 | H29: 783 | I29: 1 | J29: 202204 | K29: 01 | L29: F001 | M29: 0044361
C30: 6 | D30: 20481871027 | E30: BRALCO CONTRATISTAS GENERALES S.R.L. | F30: 0 | G30: 37 | H30: 462 | I30: 1 | J30: 202204 | K30: 01 | L30: F001 | M30: 0044406
C31: 6 | D31: 20540046566 | E31: VIAGO CONSTRUCTORES E.I.R.L. | F31: 0 | G31: 37 | H31: 94 | I31: 1 | J31: 202204 | K31: 01 | L31: F001 | M31: 0044432
C32: 6 | D32: 20606301562 | E32: CONSORCIO CAPITAL | F32: 0 | G32: 37 | H32: 279 | I32: 1 | J32: 202204 | K32: 01 | L32: F001 | M32: 0044437
C33: 6 | D33: 20606301562 | E33: CONSORCIO CAPITAL | F33: 0 | G33: 37 | H33: 141 | I33: 1 | J33: 202204 | K33: 01 | L33: F001 | M33: 0044439
C34: 6 | D34: 20440492283 | E34: CONSTRUCTORA MORENO LINCH S.A.C. | F34: 0 | G34: 37 | H34: 355 | I34: 1 | J34: 202204 | K34: 01 | L34: F001 | M34: 0044441
C35: 6 | D35: 20603052022 | E35: GRUPO MASEPRO S.A.C. | F35: 0 | G35: 37 | H35: 225 | I35: 1 | J35: 202204 | K35: 01 | L35: F001 | M35: 0044442
C36: 6 | D36: 20603052022 | E36: GRUPO MASEPRO S.A.C. | F36: 0 | G36: 37 | H36: 228 | I36: 1 | J36: 202204 | K36: 01 | L36: F001 | M36: 0044444
C37: 6 | D37: 20603052022 | E37: GRUPO MASEPRO S.A.C. | F37: 0 | G37: 37 | H37: 245 | I37: 1 | J37: 202204 | K37: 01 | L37: F001 | M37: 0044445
C38: 6 | D38: 20606413077 | E38: 3A COMPAÑÍA FERRETERA S.R.L. | F38: 0 | G38: 37 | H38: 533 | I38: 1 | J38: 202204 | K38: 01 | L38: F001 | M38: 0044447
C39: 6 | D39: 20603052022 | E39: GRUPO MASEPRO S.A.C. | F39: 0 | G39: 37 | H39: 130 | I39: 1 | J39: 202204 | K39: 01 | L39: F001 | M39: 0044449
C40: 6 | D40: 20559605850 | E40: RABSA INGENIERIA Y CONSTRUCCION S.A.C. | F40: 0 | G40: 37 | H40: 343 | I40: 1 | J40: 202204 | K40: 01 | L40: F001 | M40: 0044450
C41: 6 | D41: 20482628487 | E41: P&G GROUP S.A.C. | F41: 0 | G41: 37 | H41: 520 | I41: 1 | J41: 202204 | K41: 01 | L41: F001 | M41: 0044466
C42: 6 | D42: 20481871027 | E42: BRALCO CONTRATISTAS GENERALES S.R.L. | F42: 0 | G42: 37 | H42: 92 | I42: 1 | J42: 202204 | K42: 01 | L42: F001 | M42: 0044467
C43: 6 | D43: 20477322477 | E43: GRUPO CONSTRUCTOR FOCSA S.A.C. | F43: 0 | G43: 37 | H43: 115 | I43: 1 | J43: 202204 | K43: 01 | L43: F001 | M43: 0044474
C44: 6 | D44: 20540046566 | E44: VIAGO CONSTRUCTORES E.I.R.L. | F44: 0 | G44: 37 | H44: 109 | I44: 1 | J44: 202204 | K44: 01 | L44: F001 | M44: 0044478
C45: 6 | D45: 20559605850 | E45: RABSA INGENIERIA Y CONSTRUCCION S.A.C. | F45: 0 | G45: 37 | H45: 158 | I45: 1 | J45: 202204 | K45: 01 | L45: F001 | M45: 0044503
C46: 6 | D46: 20603944659 | E46: CORPORACION SAYERI E.I.R.L. | F46: 0 | G46: 37 | H46: 84 | I46: 1 | J46: 202204 | K46: 01 | L46: F001 | M46: 0044504
C47: 6 | D47: 20477160710 | E47: LANVAS PERU S.A.C. | F47: 0 | G47: 37 | H47: 191 | I47: 1 | J47: 202204 | K47: 01 | L47: F001 | M47: 0044511
C48: 6 | D48: 20477160710 | E48: LANVAS PERU S.A.C. | F48: 0 | G48: 37 | H48: 190 | I48: 1 | J48: 202204 | K48: 01 | L48: F001 | M48: 0044512
C49: 6 | D49: 20477160710 | E49: LANVAS PERU S.A.C. | F49: 0 | G49: 37 | H49: 190 | I49: 1 | J49: 202204 | K49: 01 | L49: F001 | M49: 0044513
C50: 6 | D50: 20477160710 | E50: LANVAS PERU S.A.C. | F50: 0 | G50: 37 | H50: 326 | I50: 1 | J50: 202204 | K50: 01 | L50: F001 | M50: 0044514
C51: 6 | D51: 20482010165 | E51: COMERCIALIZADORA Y CONSTRUCTORA C & C S.A.C. | F51: 0 | G51: 37 | H51: 94 | I51: 1 | J51: 202204 | K51: 01 | L51: F001 | M51: 0044531
C52: 6 | D52: 20397093761 | E52: COCSA CONTRATISTAS GENERALES S.A.C. | F52: 0 | G52: 37 | H52: 157 | I52: 1 | J52: 202204 | K52: 01 | L52: F001 | M52: 0044542
C53: 6 | D53: 20529656751 | E53: CONSTRUNORT CAJAMARCA S.R.L. | F53: 0 | G53: 37 | H53: 212 | I53: 1 | J53: 202204 | K53: 01 | L53: F001 | M53: 0044545
C54: 6 | D54: 20529656751 | E54: CONSTRUNORT CAJAMARCA S.R.L. | F54: 0 | G54: 37 | H54: 203 | I54: 1 | J54: 202204 | K54: 01 | L54: F001 | M54: 0044546
C55: 6 | D55: 20396681651 | E55: CHC INGENIEROS S.A. | F55: 0 | G55: 37 | H55: 195 | I55: 1 | J55: 202204 | K55: 01 | L55: F001 | M55: 0044552
C56: 6 | D56: 20482261168 | E56: CONSTRUCTORA HERCULES S.A.C. | F56: 0 | G56: 37 | H56: 103 | I56: 1 | J56: 202204 | K56: 01 | L56: F001 | M56: 0044554
C57: 6 | D57: 20481561265 | E57: CRES PERU CONTRATISTAS GENERALES S.A.C. | F57: 0 | G57: 37 | H57: 90 | I57: 1 | J57: 202204 | K57: 01 | L57: F001 | M57: 0044560
C58: 6 | D58: 20482010165 | E58: COMERCIALIZADORA Y CONSTRUCTORA C & C S.A.C. | F58: 0 | G58: 37 | H58: 345 | I58: 1 | J58: 202204 | K58: 01 | L58: F001 | M58: 0044561
C59: 6 | D59: 20482010165 | E59: COMERCIALIZADORA Y CONSTRUCTORA C & C S.A.C. | F59: 0 | G59: 37 | H59: 374 | I59: 1 | J59: 202204 | K59: 01 | L59: F001 | M59: 0044562
C60: 6 | D60: 20482115005 | E60: CORPORACION RC S.A.C. | F60: 0 | G60: 37 | H60: 1850 | I60: 1 | J60: 202204 | K60: 01 | L60: F001 | M60: 0044563
C61: 6 | D61: 20480962983 | E61: COMPAÑIA DE EQUIPAMIENTO ELECTRICO INTEGRAL E INDUSTRIAL S.R.L. | F61: 0 | G61: 37 | H61: 393 | I61: 1 | J61: 202204 | K61: 01 | L61: F001 | M61: 0044564
C62: 6 | D62: 20608828860 | E62: CONSORCIO EDUCATIVO PISHAULI | F62: 0 | G62: 37 | H62: 113 | I62: 1 | J62: 202204 | K62: 01 | L62: F001 | M62: 0044623
C63: 6 | D63: 20396681651 | E63: CHC INGENIEROS S.A. | F63: 0 | G63: 37 | H63: 268 | I63: 1 | J63: 202204 | K63: 01 | L63: F001 | M63: 0044628
C64: 6 | D64: 20600813715 | E64: CORPORACION SORIANO L & C S.A.C. | F64: 0 | G64: 37 | H64: 92 | I64: 1 | J64: 202204 | K64: 01 | L64: F001 | M64: 0044630
C65: 6 | D65: 20600813715 | E65: CORPORACION SORIANO L & C S.A.C. | F65: 0 | G65: 37 | H65: 92 | I65: 1 | J65: 202204 | K65: 01 | L65: F001 | M65: 0044637
C66: 6 | D66: 20559944395 | E66: NASSI INGENIERIA & PROYECTOS S.A.C. | F66: 0 | G66: 37 | H66: 93 | I66: 1 | J66: 202204 | K66: 01 | L66: F001 | M66: 0044643
C67: 6 | D67: 20559944395 | E67: NASSI INGENIERIA & PROYECTOS S.A.C. | F67: 0 | G67: 37 | H67: 93 | I67: 1 | J67: 202204 | K67: 01 | L67: F001 | M67: 0044644
C68: 6 | D68: 20559944395 | E68: NASSI INGENIERIA & PROYECTOS S.A.C. | F68: 0 | G68: 37 | H68: 133 | I68: 1 | J68: 202204 | K68: 01 | L68: F001 | M68: 0044645
C69: 6 | D69: 20482628487 | E69: P&G GROUP S.A.C. | F69: 0 | G69: 37 | H69: 329 | I69: 1 | J69: 202204 | K69: 01 | L69: F001 | M69: 0044647
C70: 6 | D70: 20482820591 | E70: CRUZ ALVARADO CONSTRUCTORA S.A.C. | F70: 0 | G70: 37 | H70: 1112 | I70: 1 | J70: 202204 | K70: 01 | L70: F001 | M70: 0044648
C71: 6 | D71: 20482820591 | E71: CRUZ ALVARADO CONSTRUCTORA S.A.C. | F71: 0 | G71: 37 | H71: 129 | I71: 1 | J71: 202204 | K71: 01 | L71: F001 | M71: 0044649
C72: 6 | D72: 20544771478 | E72: LCL CONTRATISTAS S.A.C. | F72: 0 | G72: 37 | H72: 335 | I72: 1 | J72: 202204 | K72: 01 | L72: F001 | M72: 0044652
C73: 6 | D73: 20482115005 | E73: CORPORACION RC S.A.C. | F73: 0 | G73: 37 | H73: 1605 | I73: 1 | J73: 202204 | K73: 01 | L73: F001 | M73: 0044656
C74: 6 | D74: 20482115005 | E74: CORPORACION RC S.A.C. | F74: 0 | G74: 37 | H74: 1605 | I74: 1 | J74: 202204 | K74: 01 | L74: F001 | M74: 0044657
C75: 6 | D75: 20482010165 | E75: COMERCIALIZADORA Y CONSTRUCTORA C & C S.A.C. | F75: 0 | G75: 37 | H75: 151 | I75: 1 | J75: 202204 | K75: 01 | L75: F001 | M75: 0044658
C76: 6 | D76: 20481871027 | E76: BRALCO CONTRATISTAS GENERALES S.R.L. | F76: 0 | G76: 37 | H76: 353 | I76: 1 | J76: 202204 | K76: 01 | L76: F001 | M76: 0044659
C77: 6 | D77: 20481672172 | E77: HUAMAN & JAVE SAC | F77: 0 | G77: 37 | H77: 234 | I77: 1 | J77: 202204 | K77: 01 | L77: F001 | M77: 0044660
C78: 6 | D78: 20481871027 | E78: BRALCO CONTRATISTAS GENERALES S.R.L. | F78: 0 | G78: 37 | H78: 98 | I78: 1 | J78: 202204 | K78: 01 | L78: F001 | M78: 0044661
C79: 6 | D79: 20607426466 | E79: CONSORCIO ÚNICO | F79: 0 | G79: 37 | H79: 147 | I79: 1 | J79: 202204 | K79: 01 | L79: F001 | M79: 0044662
C80: 6 | D80: 20482720961 | E80: REPRESENTACIONES BARCH E.I.R.L. | F80: 0 | G80: 37 | H80: 100 | I80: 1 | J80: 202204 | K80: 01 | L80: F001 | M80: 0044681
C81: 6 | D81: 20482010165 | E81: COMERCIALIZADORA Y CONSTRUCTORA C & C S.A.C. | F81: 0 | G81: 37 | H81: 99 | I81: 1 | J81: 202204 | K81: 01 | L81: F001 | M81: 0044682
C82: 6 | D82: 20531750749 | E82: CONTRATISTAS GENERALES ASOCIADOS GM S.A.C. | F82: 0 | G82: 37 | H82: 349 | I82: 1 | J82: 202204 | K82: 01 | L82: F002 | M82: 0022724
C83: 6 | D83: 20481206104 | E83: A-F & ASOCIADOS S.A.C | F83: 0 | G83: 37 | H83: 96 | I83: 1 | J83: 202204 | K83: 01 | L83: F003 | M83: 0008466
C84: 6 | D84: 20481989532 | E84: SAN SEBASTIAN INVERSIONES & CONSTRUCCIONES S.A.C. | F84: 0 | G84: 37 | H84: 170 | I84: 1 | J84: 202204 | K84: 01 | L84: F003 | M84: 0008484
C85: 6 | D85: 20481206104 | E85: A-F & ASOCIADOS S.A.C | F85: 0 | G85: 37 | H85: 345 | I85: 1 | J85: 202204 | K85: 01 | L85: F003 | M85: 0008607
C86: 6 | D86: 20510620195 | E86: INVERSIONES PRO3 SAC | F86: 0 | G86: 37 | H86: 104 | I86: 1 | J86: 202204 | K86: 01 | L86: F003 | M86: 0008612
C87: 6 | D87: 20510620195 | E87: INVERSIONES PRO3 SAC | F87: 0 | G87: 37 | H87: 104 | I87: 1 | J87: 202204 | K87: 01 | L87: F003 | M87: 0008613
C88: 6 | D88: 20510620195 | E88: INVERSIONES PRO3 SAC | F88: 0 | G88: 37 | H88: 104 | I88: 1 | J88: 202204 | K88: 01 | L88: F003 | M88: 0008614
C89: 6 | D89: 20481206104 | E89: A-F & ASOCIADOS S.A.C | F89: 0 | G89: 37 | H89: 257 | I89: 1 | J89: 202204 | K89: 01 | L89: F003 | M89: 0008618
C90: 6 | D90: 20481206104 | E90: A-F & ASOCIADOS S.A.C | F90: 0 | G90: 37 | H90: 163 | I90: 1 | J90: 202204 | K90: 01 | L90: F003 | M90: 0008619
C91: 6 | D91: 20482093354 | E91: J.J. MEDUR CONTRATISTAS GENERALES S.A.C. | F91: 0 | G91: 37 | H91: 109 | I91: 1 | J91: 202204 | K91: 01 | L91: F003 | M91: 0008621
C92: 6 | D92: 20481672172 | E92: HUAMAN & JAVE SAC | F92: 0 | G92: 37 | H92: 119 | I92: 1 | J92: 202204 | K92: 01 | L92: F003 | M92: 0008629
C93: 6 | D93: 20481672172 | E93: HUAMAN & JAVE SAC | F93: 0 | G93: 37 | H93: 112 | I93: 1 | J93: 202204 | K93: 01 | L93: F003 | M93: 0008659
C94: 6 | D94: 20600198255 | E94: L Y L KUSKALLA S.A.C. | F94: 0 | G94: 37 | H94: 1428 | I94: 1 | J94: 202204 | K94: 01 | L94: F003 | M94: 0008666
C95: 6 | D95: 20600198255 | E95: L Y L KUSKALLA S.A.C. | F95: 0 | G95: 37 | H95: 179 | I95: 1 | J95: 202204 | K95: 01 | L95: F003 | M95: 0008667
C96: 6 | D96: 20481206104 | E96: A-F & ASOCIADOS S.A.C | F96: 0 | G96: 37 | H96: 283 | I96: 1 | J96: 202204 | K96: 01 | L96: F003 | M96: 0008688
C97: 6 | D97: 20481206104 | E97: A-F & ASOCIADOS S.A.C | F97: 0 | G97: 37 | H97: 100 | I97: 1 | J97: 202204 | K97: 01 | L97: F003 | M97: 0008689
C98: 6 | D98: 20481206104 | E98: A-F & ASOCIADOS S.A.C | F98: 0 | G98: 27 | H98: 176 | I98: 1 | J98: 202204 | K98: 01 | L98: F006 | M98: 0006636
C99: 6 | D99: 20481206104 | E99: A-F & ASOCIADOS S.A.C | F99: 0 | G99: 27 | H99: 80 | I99: 1 | J99: 202204 | K99: 01 | L99: F006 | M99: 0006637
C100: 6 | D100: 20482115005 | E100: CORPORACION RC S.A.C. | F100: 0 | G100: 19 | H100: 354 | I100: 1 | J100: 202204 | K100: 01 | L100: F001 | M100: 0044633
C101: 6 | D101: 20481886300 | E101: CONSTRUCTORA CIEZA TEJADA EMPRESA INDIVIDUAL DE RESPONSABILIDAD LIMITADA | F101: 0 | G101: 30 | H101: 2206 | I101: 1 | J101: 202204 | K101: 01 | L101: F007 | M101: 0000501

Sheet Clie_Prov
C2: Proveedor | D2: =CONCATENATE(Datos!E16," - ",Datos!E19) -> 20397609082 - REPALSA S.A.
C4: N° Lote | D4: 220005 | E4: Importe : | F4: =SUM($I$13:$I$988) -> 4773
C6: POR INTERNET - Adquiriente con múltiples proveedores
C8: DATOS DEL PROVEEDOR | G8: INFORMACION RESPECTO AL DEPOSITO | L8: DATOS DEL COMPROBANTE
C11: TIPO | D11: N° RUC | E11: NOMBRES / RAZON SOCIAL | F11: N° PROFORM | G11: Bs / Ss | H11: CTA PROVEEDOR | I11: IMPORTE | J11: TIPO OPERACION | K11: PERIODO | L11: TIPO | M11: SERIE | N11: NUMERO
C13: 6 | D13: 20100000688 | E13: =IFERROR(VLOOKUP(D13,Anexos!$A$3:$C$130,2,FALSE),"-") -> ALMACENERA DEL PERU S A | F13: 0 | G13: 22 | H13: =IFERROR(VLOOKUP(D13,Anexos!$A$3:$C$130,3,FALSE),"-") -> 00000404977 | I13: 905 | J13: 1 | K13: 202203 | L13: 1 | M13: F031 | N13: 13373
C14: 6 | D14: 20100000688 | E14: =IFERROR(VLOOKUP(D14,Anexos!$A$3:$C$130,2,FALSE),"-") -> ALMACENERA DEL PERU S A | F14: 0 | G14: 22 | H14: =IFERROR(VLOOKUP(D14,Anexos!$A$3:$C$130,3,FALSE),"-") -> 00000404977 | I14: 609 | J14: 1 | K14: 202203 | L14: 1 | M14: F031 | N14: 13372
C15: 6 | D15: 20100000688 | E15: =IFERROR(VLOOKUP(D15,Anexos!$A$3:$C$130,2,FALSE),"-") -> ALMACENERA DEL PERU S A | F15: 0 | G15: 22 | H15: =IFERROR(VLOOKUP(D15,Anexos!$A$3:$C$130,3,FALSE),"-") -> 00000404977 | I15: 611 | J15: 1 | K15: 202204 | L15: 1 | M15: F031 | N15: 13664
C16: 6 | D16: 20100000688 | E16: =IFERROR(VLOOKUP(D16,Anexos!$A$3:$C$130,2,FALSE),"-") -> ALMACENERA DEL PERU S A | F16: 0 | G16: 22 | H16: =IFERROR(VLOOKUP(D16,Anexos!$A$3:$C$130,3,FALSE),"-") -> 00000404977 | I16: 916 | J16: 1 | K16: 202204 | L16: 1 | M16: F031 | N16: 13665
C17: 6 | D17: 20502929675 | E17: =IFERROR(VLOOKUP(D17,Anexos!$A$3:$C$130,2,FALSE),"-") -> LOGOS ETC E.I.R.L. | F17: 0 | G17: 22 | H17: =IFERROR(VLOOKUP(D17,Anexos!$A$3:$C$130,3,FALSE),"-") -> 00051003667 | I17: 266 | J17: 1 | K17: 202204 | L17: 1 | M17: E001 | N17: 33
C18: 6 | D18: 10181235697 | E18: =IFERROR(VLOOKUP(D18,Anexos!$A$3:$C$130,2,FALSE),"-") -> CASTILLO NEIRA BENITO SALOMON | F18: 0 | G18: 22 | H18: =IFERROR(VLOOKUP(D18,Anexos!$A$3:$C$130,3,FALSE),"-") -> 00771058027 | I18: 142 | J18: 1 | K18: 202204 | L18: 1 | M18: E001 | N18: 99
C19: 6 | D19: 20131644109 | E19: =IFERROR(VLOOKUP(D19,Anexos!$A$3:$C$130,2,FALSE),"-") -> ESTUDIO VILLARAN Y DE LA ROSA, COLI | F19: 0 | G19: 22 | H19: =IFERROR(VLOOKUP(D19,Anexos!$A$3:$C$130,3,FALSE),"-") -> 00741059940 | I19: 142 | J19: 1 | K19: 202204 | L19: 1 | M19: E001 | N19: 4294
C20: 6 | D20: 20440429590 | E20: =IFERROR(VLOOKUP(D20,Anexos!$A$3:$C$130,2,FALSE),"-") -> ARANCIBIA & BAZAN S. CIVIL DE R.L. | F20: 0 | G20: 22 | H20: =IFERROR(VLOOKUP(D20,Anexos!$A$3:$C$130,3,FALSE),"-") -> 00741062518 | I20: 170 | J20: 1 | K20: 202204 | L20: 1 | M20: E001 | N20: 6395
C21: 6 | D21: 20539952413 | E21: =IFERROR(VLOOKUP(D21,Anexos!$A$3:$C$130,2,FALSE),"-") -> ESCOBEDO MEDINA AUDITORES ASOCIADOS | F21: 0 | G21: 22 | H21: =IFERROR(VLOOKUP(D21,Anexos!$A$3:$C$130,3,FALSE),"-") -> 00761131567 | I21: 212 | J21: 1 | K21: 202204 | L21: 1 | M21: FE03 | N21: 24
C22: 6 | D22: 20440492283 | E22: =IFERROR(VLOOKUP(D22,Anexos!$A$3:$C$130,2,FALSE),"-") -> CONSTRUCTORA MORENO LINCH S.A.C. | F22: 0 | G22: 30 | H22: =IFERROR(VLOOKUP(D22,Anexos!$A$3:$C$130,3,FALSE),"-") -> 00741207265 | I22: 800 | J22: 1 | K22: 202204 | L22: 1 | M22: E001 | N22: 14
C989: 6
C990: 6
C991: 6
C992: 6
C993: 6
C994: 6
C995: 6
C996: 6
C997: 6
C998: 6
C999: 6
C1000: 6
C1001: 6
C1002: 6
C1003: 6
C1004: 6
C1005: 6
C1006: 6
C1007: 6
C1008: 6
C1009: 6
C1010: 6
C1011: 6
C1012: 6
C1013: 6
C1014: 6
C1015: 6
C1016: 6
C1017: 6
C1018: 6
C1019: 6
C1020: 6
C1021: 6
C1022: 6
C1023: 6
C1024: 6
C1025: 6
C1026: 6
C1027: 6
C1028: 6
C1029: 6
C1030: 6
C1031: 6
C1032: 6
C1033: 6
C1034: 6
C1035: 6
C1036: 6
C1037: 6
C1038: 6
C1039: 6
C1040: 6
C1041: 6
C1042: 6
C1043: 6
C1044: 6
C1045: 6
C1046: 6
C1047: 6
C1048: 6
C1049: 6
C1050: 6
C1051: 6
C1052: 6
C1053: 6
C1054: 6
C1055: 6
C1056: 6
C1057: 6
C1058: 6
C1059: 6
C1060: 6
C1061: 6
C1062: 6
C1063: 6
C1064: 6
C1065: 6
C1066: 6
C1067: 6
C1068: 6
C1069: 6
C1070: 6
C1071: 6
C1072: 6
C1073: 6
C1074: 6
C1075: 6
C1076: 6
C1077: 6
C1078: 6
C1079: 6
C1080: 6
C1081: 6
C1082: 6
C1083: 6
C1084: 6
C1085: 6
C1086: 6
C1087: 6
C1088: 6
C1089: 6
C1090: 6
C1091: 6
C1092: 6
C1093: 6
C1094: 6
C1095: 6
C1096: 6
C1097: 6
C1098: 6
C1099: 6
C1100: 6
C1101: 6
C1102: 6
C1103: 6
C1104: 6
C1105: 6
C1106: 6
C1107: 6
C1108: 6
C1109: 6
C1110: 6
C1111: 6
C1112: 6
C1113: 6
C1114: 6
C1115: 6
C1116: 6
C1117: 6
C1118: 6
C1119: 6
C1120: 6
C1121: 6
C1122: 6
C1123: 6
C1124: 6
C1125: 6
C1126: 6
C1127: 6
C1128: 6
C1129: 6
C1130: 6
C1131: 6
C1132: 6
C1133: 6
C1134: 6
C1135: 6
C1136: 6
C1137: 6
C1138: 6
C1139: 6
C1140: 6
C1141: 6
C1142: 6
C1143: 6
C1144: 6
C1145: 6
C1146: 6
C1147: 6
C1148: 6
C1149: 6
C1150: 6
C1151: 6
C1152: 6
C1153: 6
C1154: 6
C1155: 6
C1156: 6
C1157: 6
C1158: 6
C1159: 6
C1160: 6
C1161: 6
C1162: 6
C1163: 6
C1164: 6
C1165: 6
C1166: 6
C1167: 6
C1168: 6
C1169: 6
C1170: 6
C1171: 6
C1172: 6
C1173: 6
... 25 more rows

Sheet Anexos
A2: RUC | B2: RAZON SOCIAL | C2: NRO CUENTA
A3: 20100000688 | B3: ALMACENERA DEL PERU S A | C3: 00000404977
A4: 20131559764 | B4: TRANSPORTES SAN FELIPE S A | C4: 00741086492
A5: 20100612373 | B5: ANDREA COMERCIAL S A ANCOSA | C5: 00000652253
A6: 20543083888 | B6: APM TERMINALS CALLAO SOCIEDAD ANONI | C6: 00005207037
A7: 20440429590 | B7: ARANCIBIA & BAZAN S. CIVIL DE R.L. | C7: 00741062518
A8: 20508322870 | B8: ARCOTECHO PERU S.A.C | C8: 00000466832
A9: 10182130619 | B9: AREDO ROSADO CLAUDIA MARLENE | C9: 00771013910
A10: 20114136094 | B10: AUTOMECANICA SAN MIGUEL S.R.L. | C10: 00781088560
A11: 20506006024 | B11: AUTOMOTORES GILDEMEISTER-PERU S.A. | C11: 00000785016
A12: 20565765842 | B12: BIMMERSHOP E.I.R.L. | C12: 00023034425
A13: 20601359783 | B13: C & A TRADING CORP S.A.C. | C13: 00741530570
A14: 20521135809 | B14: C Y M TRANSPORTES S.A.C. | C14: 00059008773
A15: 10034971825 | B15: CARREÑO SOSA MARIO | C15: 00671081234
A16: 10181235697 | B16: CASTILLO NEIRA BENITO SALOMON | C16: 00771058027
A17: 20602940382 | B17: CENFOLOG PERU SOCIEDAD ANONIMA CERR | C17: 00031126711
A18: 20602230733 | B18: CENTRO DE INSTRUCCION PREHOSPITALAR | C18: 00771039979
A19: 20553448507 | B19: CIBERGESTION PERU S.A.C. | C19: 00046131509
A20: 20544206410 | B20: CLINICA LA MERCED S.A.C. | C20: 00076054312
A21: 20480962983 | B21: COMPAÐIA DE EQUIPAMIENTO ELECTRICO | C21: 00741319454
A22: 20605637079 | B22: CONSORCIO VICACC | C22: 00741651831
A23: 20477638784 | B23: CONSTRUCTORA JORZA S.A.C. | C23: 00771017940
A24: 20606584122 | B24: CONSTRUCTORA Y CONSULTORA SERVICIOS | C24: 00631385621
A25: 20440272755 | B25: CONSULTORIA GONZALEZ URRELO S.A.C. | C25: 00741640627
A26: 20603343612 | B26: CONTASISCORP SOCIEDAD ANONIMA CERRA | C26: 00008020779
A27: 10178483728 | B27: CORCUERA GARCIA MARCO ANTONIO | C27: 00741061503
A28: 20314028164 | B28: CORPORACION ASFALTOS Y PAVIMENTOS C | C28: 00231059822
A29: 20603266120 | B29: CORPORACION EUGENIO CARRANZA S.A.C. | C29: 00771051030
A30: 20605089144 | B30: DCC CONSTRUCTORA E INMOBILIARIA E.I | C30: 00771054420
A31: 20603547269 | B31: DISTRIBUIDORA REMUSA S.A.C. | C31: 00741584832
A32: 20520588486 | B32: DIVECENTER S.A.C. | C32: 00068169917
A33: 20502797230 | B33: DIVEIMPORT S.A. | C33: 00005080215
A34: 20132162230 | B34: EMPRESA EDITORA LA INDUSTRIA DE TRU | C34: 00741059959
A35: 20482237291 | B35: EMPRESA MIRANDA S.A.C. | C35: 00741194996
A36: 20600071450 | B36: EMPRESA OPERADORA TERRESTRE JBJ S.A | C36: 00371129669
A37: 20481553670 | B37: ENGINE BUSINESS SOLUTIONS S.A.C. | C37: 00741455102
A38: 20265681299 | B38: EQUIFAX PERU S.A. | C38: 00000426288
A39: 20539952413 | B39: ESCOBEDO MEDINA AUDITORES ASOCIADOS | C39: 00761131567
A40: 20481806471 | B40: ESTUDIO MARIÑAS & ABOGADOS SAC | C40: 00741148900
A41: 20131644109 | B41: ESTUDIO VILLARAN Y DE LA ROSA, COLI | C41: 00741059940
A42: 20601034809 | B42: EUROCAPITAL SERVICIOS FINANCIEROS S | C42: 00005318661
A43: 20508074281 | B43: EXPRESO GRAEL S.A.C. | C43: 00000821500
A44: 20132108294 | B44: FABRICACIONES METALICAS CARRANZA S. | C44: 00741048841
A45: 10106993292 | B45: FERNANDEZ BURGA JOSE MIGUEL | C45: 00231289984
A46: 20603579721 | B46: FONDO BP7 - FONDO DE INVERSION PRIV | C46: 00048086756
A47: 20601367174 | B47: FONDO DE INVERSION POR OFERTA PUBLI | C47: 00046229258
A48: 10182114214 | B48: GALVEZ RODRIGUEZ DAVID ENRIQUE | C48: 00741252988
A49: 20545272769 | B49: GAMBELL TRADING S.A.C. | C49: 00058216666
A50: 20545573378 | B50: GESTION MADERERA S.A.C. | C50: 00046001400
A51: 20601230217 | B51: GRUAS L & B E.I.R.L. | C51: 00025027205
A52: 20517078931 | B52: GRUPO PML S.A.C AGENTES DE ADUANAS | C52: 00001046527
A53: 20601158362 | B53: GRUPO RUBYNELR S.A.C. | C53: 00781185043
A54: 20559765385 | B54: GT SOFTWARE S.A.C. | C54: 00741375796
A55: 10181352260 | B55: GUZMAN REBAZA JUAN MANUEL | C55: 00741243598
A56: 20536557858 | B56: HOMECENTERS PERUANOS S.A. | C56: 00098081909
A57: 20481672172 | B57: HUAMAN & JAVE SAC | C57: 00785003160
A58: 20355156584 | B58: IMPRENTA EDITORA GRAFICA REAL S.A.C | C58: 00741091453
A59: 20481442924 | B59: IMPRESOS CABRERA EIRL | C59: 00741273446
A60: 20477289241 | B60: INGELCOM PERU S.R.L. | C60: 00749002123
A61: 20604019461 | B61: INKA LIDER AUTOMOTRIZ SOCIEDAD ANON | C61: 00231307435
A62: 20440376704 | B62: INTERAMERICANA TRUJILLO S.A. | C62: 00741059142
A63: 20440352431 | B63: KVC CONTRATISTAS S.A.C. | C63: 00741207184
A64: 20440330381 | B64: L.C.F. DISTRIBUCIONES Y SERVICIOS S | C64: 00741065088
A65: 20544771478 | B65: LCL CONTRATISTAS S.A.C. | C65: 00003052613
A66: 20482556125 | B66: LIGA DEPORTIVA RECREATIVA DE TABLA | C66: 00741215837
A67: 20553510661 | B67: LLAMA.PE S.A. | C67: 00004071239
A68: 20502929675 | B68: LOGOS ETC E.I.R.L. | C68: 00051003667
A69: 20440475354 | B69: MADERERA MERINO & GUTIERREZ S.A.C | C69: 00741052695
A70: 20605161490 | B70: MADERERA MERINO S.A.C. | C70: 00741629097
A71: 20397561454 | B71: MANNUCCI DIESEL SAC | C71: 00741072769
A72: 20546924123 | B72: MARMOLERIA JHIRE S.A.C. | C72: 00098089705
A73: 10075521605 | B73: MAS CARDENAS SANDRO RAUL | C73: 00000371157
A74: 20559960595 | B74: MEBUSTRACK S.A.C. | C74: 00741385864
A75: 20259814210 | B75: MEDITERRANEAN SHIPPING COMPANY DEL | C75: 00001009389
A76: 20347646891 | B76: MEDLOG PERU S.A. | C76: 00000361151
A77: 20440198415 | B77: MULTIPLUS E.I.R.L. | C77: 00741114097
A78: 20559944395 | B78: NASSI INGENIERIA & PROYECTOS S.A.C | C78: 00741372452
A79: 20445412890 | B79: NORMOTORS S.A.C. | C79: 00781048550
A80: 20600695771 | B80: NUBEFACT S.A. | C80: 00003186857
A81: 20601444446 | B81: NUESTRA CASA REVISTA INMOBILIARIA S | C81: 00741539411
A82: 20517705951 | B82: PERI - PERUANA SAC | C82: 00003005194
A83: 20495821456 | B83: PREFABRICADOS FERNANDEZ SOCIEDAD AN | C83: 00271005989
A84: 20254053822 | B84: PRODUCTOS DE ACERO CASSADO SA PRODA | C84: 00000333069
A85: 20521685388 | B85: QUANTUM VALUACIONES S.A.C. | C85: 00068159431
A86: 10405718052 | B86: RAMIREZ ACUÑA OMAR FRANCISCO | C86: 00631268528
A87: 20481398763 | B87: REMUSA S.R.L. | C87: 00741129132
A88: 20403385949 | B88: REPALSA SAC | C88: 00781180904
A89: 20477373977 | B89: REPRESENTACIONES DACA S.A.C. | C89: 00771016138
A90: 20482805958 | B90: ROARSA CONTRATISTAS GENERALES S.R.L | C90: 00741212633
A91: 20551739075 | B91: ROFFEL TRANSPORTES SOCIEDAD ANONIMA | C91: 00004065735
A92: 20131911310 | B92: SEDALIB S.A. | C92: 00741054361
A93: 20131945214 | B93: SELECTAS MADERAS DEL PERU | C93: 00741049546
A94: 20525138985 | B94: SENTINEL PER┌ S.A. | C94: 00023010054
A95: 20520678043 | B95: SERVI EQUIPOS INTERNACIONALES | C95: 00771004784
A96: 20275873480 | B96: SERVICENTRO RAMIREZ S.A.C. | C96: 00741126125
A97: 20507852549 | B97: SODEXO PASS PERU S.A.C. | C97: 00005078458
A98: 20511128146 | B98: TECNOLOGIA DE FLUIDOS SOCIEDAD ANON | C98: 00066017486
A99: 20482155562 | B99: TENNIS CUP E.I.R.L. | C99: 00741259281
A100: 20544004973 | B100: TRACKLOG S.A.C | C100: 00010011388
A101: 20481720169 | B101: TRANSPORTES E INVERSIONES BRUNO S.A | C101: 00741141639
A102: 20132291714 | B102: TRANSPORTES NARANJO S.A.C | C102: 00631079946
A103: 20131559764 | B103: TRANSPORTES SAN FELIPE S A | C103: 00741086492
A104: 10464753538 | B104: UCAÑAN ARZOLA JOEL MOISES | C104: 00741685477
A105: 10188572192 | B105: VASQUEZ SALAZAR CARLOS ROBERTO | C105: 00741375389
A106: 20192402400 | B106: WANCHAKO EIRL | C106: 00741121352
A107: 20132381624 | B107: YUGOCORP S.A.C. | C107: 00741060167
A108: 10190726130 | B108: ZAVALETA VASQUEZ SANTOS BENJAMIN | C108: 00741103133
A109: 20440492283 | B109: CONSTRUCTORA MORENO LINCH S.A.C. | C109: 00741207265

Sheet Hoja1
A1: F001-16782 | B1: 2200 | C1: 2953.84 | D1: =+C1*0.04 -> 118.1536 | E1: =+B1-D1 -> 2081.8464 | G1: =ROUND(D1,0) -> 118
A2: F001-16983 | B2: 2200 | C2: 2363.44 | D2: =+C2*0.04 -> 94.5376 | E2: =+B2-D2 -> 2105.4624 | F2: =ROUND(E2,0) -> 2105 | G2: =ROUND(D2,0) -> 95
A3: F001-16984 | B3: 2200 | C3: 2363.44 | D3: 94.5376 | E3: 2105.4624 | F3: =ROUND(E3,0) -> 2105 | G3: =ROUND(D3,0) -> 95
A4: F001-16985 | B4: 2200 | C4: 2363.44 | D4: 94.5376 | E4: 2105.4624 | F4: 2105 | G4: 95
A5: F001-16986 | B5: 2200 | C5: 2363.44 | D5: 94.5376 | E5: 2105.4624 | F5: 2105 | G5: 95
A6: F001-16987 | B6: 2200 | C6: 2363.44 | D6: 94.5376 | E6: 2105.4624 | F6: 2105 | G6: 95
A7: F001-16988 | B7: 2200 | C7: 2363.44 | D7: 94.5376 | E7: 2105.4624 | F7: 2105 | G7: 95
A8: F001-16989 | B8: 2200 | C8: 2363.44 | D8: 94.5376 | E8: 2105.4624 | F8: 2105 | G8: 95
A9: F001-16990 | B9: 2200 | C9: 2363.44 | D9: 94.5376 | E9: 2105.4624 | F9: 2105 | G9: 95
A10: F001-16991 | B10: 2200 | C10: 1932.42 | D10: 77.2968 | E10: 2122.7032 | F10: 2123 | G10: 77
A11: F001-16998 | B11: 2200 | C11: 2363.44 | D11: 94.5376 | E11: 2105.4624 | F11: 2105 | G11: 95
E13: =SUM(E2:E11) -> 21071.8648 | F13: =SUM(F2:F11) -> 21068 | G13: IMPORTE A PAGAR
F14: 21050 | G14: IMPORTE PAGADO
F15: =+F13-F14 -> 18 | G15: DIFERENCIA
